lending/lending_fUSD_20240610
["ID","MTS","AMOUNT","RATE_DAILY","PERIOD"]
[328929766,1718003462644,-245.04469209,0.00029041,4]
[328929767,1718003462657,-1319.22530791,0.00029041,4]
[328929768,1718003462668,-422.49173735,0.00029041,4]
[328929769,1718003464489,14911.28172831,0.00013014,2]
[328929770,1718003572758,-155.0,0.0001301,2]
[328929771,1718003572782,-603.73590612,0.00013011,2]
[328929772,1718003572807,-155.0,0.00013013,2]
[328929773,1718003572830,-273.0,0.00013013,2]
[328929774,1718003572854,-150.0,0.00013013,2]
[328929775,1718003572876,-150.0,0.00013013,2]
[328929776,1718003572901,-16513.26409388,0.00013014,2]
[328929784,1718003856593,-525.4044301,0.00012909,2]
[328929785,1718003856618,-155.0,0.00012909,2]
[328929786,1718003856643,-12386.5955699,0.0001291,2]
[328929787,1718003885619,1187.20760077,0.0003,90]
[328929791,1718003970226,323.0,0.0003,120]
[328929792,1718004220646,-184.75301057,0.00012914,2]
[328929795,1718004285729,124003.51271178,0.00012914,2]
[328929796,1718004478318,-490.61954782,0.00012912,2]
[328929797,1718004478345,-150.0,0.00012913,2]
[328929798,1718004478376,-3359.38045218,0.00012914,2]
[328929799,1718004478936,-4000.0,0.00012914,2]
[328929800,1718004479481,-4000.0,0.00012914,2]
[328929801,1718004480304,-4000.0,0.00012914,2]
[328929804,1718004510920,-184.75301057,0.00012909,2]
[328929805,1718004510947,-2350.65016854,0.00012913,2]
[328929806,1718004510977,-1464.59682089,0.00012914,2]
[328929809,1718004535071,-545.84909757,0.00012913,2]
[328929810,1718004535099,-645.83379313,0.00012913,2]
[328929811,1718004535127,-2808.3171093,0.00012914,2]
[328929812,1718004535696,-4000.0,0.00012914,2]
[328929813,1718004536351,-4000.0,0.00012914,2]
[328929814,1718004539161,-4000.0,0.00012914,2]
[328929815,1718004539789,-4000.0,0.00012914,2]
[328929816,1718004540426,-4000.0,0.00012914,2]
[328929817,1718004547962,-4000.0,0.00012814,2]
[328929818,1718004548693,-4000.0,0.00012814,2]
[328929819,1718004549368,-4000.0,0.00012814,2]
[328929820,1718004550119,-2342.74,0.00012814,2]
[328929821,1718004550144,-195.79238693,0.00012913,2]
[328929822,1718004550170,-1461.46761307,0.00012914,2]
[328929823,1718004584252,5202.0,0.0003,120]
[328929825,1718004621231,4842.0,0.00026,30]
[328929855,1718004633457,-209.52678916,0.00012812,2]
[328929856,1718004633467,-295.83967052,0.00012812,2]
[328929857,1718004633478,-150.0,0.00012813,2]
[328929858,1718004633488,-727.4436777,0.00012813,2]
[328929859,1718004633501,-158.66771388,0.00012813,2]
[328929860,1718004633511,-34421.49280796,0.00012814,2]
[328929861,1718004633521,-155.0,0.0001291,2]
[328929862,1718004633531,-400.0,0.00012913,2]
[328929863,1718004633541,-16199.99174,0.00012914,2]
[328929864,1718004633550,-499.99,0.00013967,2]
[328929865,1718004633560,-20166.83,0.00014204,2]
[328929866,1718004633570,-841.31146831,0.00015,2]
[328929867,1718004633582,-177.19,0.0001941,2]
[328929868,1718004633592,-163.85,0.00020314,2]
[328929869,1718004633602,-413.96,0.00023849,2]
[328929870,1718004633612,-165.83,0.00023945,2]
[328929871,1718004633622,-250.0,0.00023967,2]
[328929872,1718004633631,-224.23,0.00024127,2]
[328929873,1718004633641,-566.56,0.00024142,2]
[328929874,1718004633650,-191.98,0.00024216,2]
[328929875,1718004633660,-410.75,0.00024384,2]
[328929876,1718004633671,-344.4,0.00024436,2]
[328929877,1718004633681,-1000.0,0.00024527,2]
[328929878,1718004633691,-178.08,0.00024535,2]
[328929879,1718004633701,-4942.13,0.0002456,2]
[328929880,1718004633711,-250.0,0.00025205,2]
[328929881,1718004633721,-166.9,0.00025421,2]
[328929882,1718004633731,-1761.36,0.0002546,2]
[328929883,1718004633741,-734.548,0.0002553,2]
[328929884,1718004633751,-166.66666666,0.00026022,2]
[328929885,1718004633761,-413.96,0.00026113,2]
[328929886,1718004633771,-152.95805818,0.00026127,2]
[328929887,1718004633781,-152.95805818,0.00026197,2]
[328929888,1718004633791,-159.94461867,0.00026317,2]
[328929889,1718004633801,-155.43161688,0.00026456,2]
[328929890,1718004633811,-166.9,0.00026746,2]
[328929891,1718004633824,-205.0,0.0002704,2]
[328929892,1718004633834,-151.0,0.00027259,7]
[328929893,1718004633844,-154.39556651,0.00027329,2]
[328929894,1718004633854,-157.6292984,0.0002755,2]
[328929895,1718004633864,-1000.0,0.00027593,2]
[328929896,1718004633874,-150.40596576,0.00027606,2]
[328929897,1718004633884,-205.0,0.0002763,2]
[328929898,1718004633893,-157.6292984,0.00027861,2]
[328929899,1718004633904,-627.06293186,0.00027877,2]
[328929900,1718004633914,-600.0,0.0002793,6]
[328929901,1718004633924,-224.8860613,0.00028,2]
[328929902,1718004633933,-600.0,0.00028028,6]
[328929903,1718004633943,-151.0,0.00028173,7]
[328929904,1718004633953,-1761.36,0.000282,2]
[328929905,1718004633963,-205.0,0.0002822,2]
[328929906,1718004633973,-154.81924676,0.00028272,2]
[328929907,1718004633982,-413.96,0.00028377,2]
[328929908,1718004633993,-600.0,0.000284,7]
[328929909,1718004634003,-600.0,0.0002846,7]
[328929910,1718004634013,-600.0,0.00028518,7]
[328929911,1718004634023,-24257.1862,0.00028741,2]
[328929912,1718004634033,-7330.3883,0.00028741,2]
[328929913,1718004634043,-1589.09396849,0.0002875,4]
[328929914,1718004634053,-2602.16255,0.0002875,2]
[328929915,1718004634063,-154.39556653,0.00028754,2]
[328929916,1718004634073,-151.77973416,0.00028778,2]
[328929917,1718004634084,-200.0,0.00028808,2]
[328929918,1718004634094,-500.0,0.00028808,2]
[328929919,1718004634104,-205.0,0.0002882,2]
[328929920,1718004634114,-600.0,0.0002889,7]
[328929921,1718004634124,-1000.0,0.00028896,2]
[328929922,1718004634134,-1139.6704,0.00028896,2]
[328929923,1718004634144,-971.51495603,0.00028941,2]
[328929924,1718004634154,-159.88256738,0.00028941,2]
[328929925,1718004634164,-500.0,0.00028941,2]
[328929926,1718004634176,-7500.0,0.00028941,2]
[328929927,1718004634186,-23476.94089467,0.00029,2]
[328929928,1718004634199,-30748.73201743,0.00029,2]
[328929929,1718004634209,-345.0,0.00029,2]
[328929930,1718004634218,-160.0,0.00029,2]
[328929931,1718004634228,-9953.63758923,0.00029,5]
[328929932,1718004638806,-18246.66829684,0.00029,5]
[328929934,1718004638817,-150.0,0.00029,6]
[328929936,1718004638828,-5000.0,0.00029013,2]
[328929937,1718004638838,-556.9016128,0.00029028,2]
[328929940,1718004638848,-182.4619682,0.00029028,2]
[328929943,1718004638858,-4398.6330345,0.00029028,2]
[328929946,1718004638868,-7495.7761853,0.00029028,2]
[328929948,1718004638878,-971.51495597,0.00029028,2]
[328929950,1718004638888,-1515.97596609,0.00029039,2]
[328929952,1718004638898,-163.30089533,0.00029039,2]
[328929953,1718004638908,-217.89154337,0.00029039,2]
[328929954,1718004638918,-551.9435641,0.00029039,2]
[328929955,1718004638929,-155.0,0.00029039,2]
[328929956,1718004638939,-282.95218659,0.00029039,2]
[328929957,1718004638951,-181.90921271,0.00029039,2]
[328929958,1718004638963,-270.93248841,0.00029039,2]
[328929959,1718004638973,-237.08951748,0.00029039,2]
[328929960,1718004638985,-155.0,0.00029039,2]
[328929961,1718004638995,-241.63233639,0.00029039,2]
[328929962,1718004639006,-248.1650208,0.00029039,2]
[328929963,1718004639016,-155.0,0.00029039,2]
[328929964,1718004639027,-155.0,0.00029039,2]
[328929965,1718004639038,-155.0,0.00029039,2]
[328929966,1718004639048,-293.48725277,0.00029039,2]
[328929967,1718004639059,-192.7333,0.00029039,2]
[328929968,1718004639070,-775.62362508,0.00029039,2]
[328929969,1718004639082,-269.27123607,0.00029039,2]
[328929970,1718004639093,-328.03196452,0.00029039,2]
[328929971,1718004639103,-155.0,0.00029039,2]
[328929972,1718004639114,-155.0,0.00029039,2]
[328929973,1718004639125,-155.0,0.00029039,2]
[328929974,1718004639135,-263.582379,0.00029039,2]
[328929975,1718004639145,-155.0,0.00029039,2]
[328929976,1718004639155,-892.00735632,0.00029039,2]
[328929977,1718004639166,-155.0,0.00029039,2]
[328929978,1718004639176,-205.60285074,0.00029039,2]
[328929979,1718004639187,-155.0,0.00029039,2]
[328929980,1718004639196,-155.0,0.00029039,2]
[328929981,1718004639207,-155.0,0.00029039,2]
[328929982,1718004639218,-201.47569243,0.00029039,2]
[328929983,1718004639228,-155.0,0.00029039,2]
[328929984,1718004639239,-166.81757453,0.00029039,2]
[328929985,1718004639250,-155.0,0.00029039,2]
[328929986,1718004639260,-155.0,0.00029039,2]
[328929987,1718004639271,-155.0,0.00029039,2]
[328929988,1718004639281,-338.68648196,0.00029039,2]
[328929989,1718004639292,-267.31376338,0.00029039,2]
[328929990,1718004639302,-285.79992122,0.00029039,2]
[328929991,1718004639313,-155.0,0.00029039,2]
[328929992,1718004639326,-166.65902904,0.00029039,2]
[328929993,1718004639337,-2876.38560742,0.00029039,2]
[328929994,1718004639347,-156.25165599,0.00029039,2]
[328929996,1718004639357,-158.11955394,0.00029039,2]
[328929998,1718004639368,-155.0,0.00029039,2]
[328930000,1718004639379,-523.91853483,0.00029039,2]
[328930003,1718004639390,-155.0,0.00029039,2]
[328930005,1718004639405,-1625.08193792,0.00029039,2]
[328930007,1718004639416,-1403.32727994,0.00029039,2]
[328930010,1718004639427,-352.32141165,0.00029039,2]
[328930016,1718004639596,-647.67858835,0.00029039,2]
[328930017,1718004639606,-530.12871842,0.00029039,2]
[328930018,1718004639616,-219.75251246,0.00029039,2]
[328930019,1718004639626,-382.96500773,0.00029039,2]
[328930020,1718004639636,-1157.98675746,0.00029039,2]
[328930021,1718004639646,-514.32521783,0.00029039,2]
[328930022,1718004640361,-131.5085753,0.00029039,2]
[328930025,1718004640372,-553.41346225,0.00029039,2]
[328930027,1718004640384,-5949.01142907,0.00029039,2]
[328930029,1718004640395,-246.69616828,0.00029039,2]
[328930031,1718004640409,-4016.57076916,0.0002904,2]
[328930032,1718004640420,-390.76539191,0.0002904,2]
[328930034,1718004640430,-196.0,0.00029041,5]
[328930035,1718004640440,-145323.79675466,0.00029041,13]
[328930037,1718004640451,-500.0,0.00029041,4]
[328930039,1718004640461,-500.0,0.00029041,4]
[328930041,1718004640472,-500.0,0.00029041,4]
[328930042,1718004640482,-500.0,0.00029041,4]
[328930044,1718004640495,-155.0,0.00029041,4]
[328930046,1718004640506,-500.0,0.00029041,4]
[328930048,1718004640517,-500.0,0.00029041,4]
[328930049,1718004640529,-527.64294384,0.00029041,4]
[328930051,1718004640539,-500.0,0.00029041,4]
[328930053,1718004640550,-500.0,0.00029041,4]
[328930055,1718004640560,-500.0,0.00029041,4]
[328930056,1718004640571,-500.0,0.00029041,4]
[328930058,1718004640584,-500.0,0.00029041,4]
[328930060,1718004640594,-500.0,0.00029041,4]
[328930061,1718004640604,-647.43032292,0.00029041,4]
[328930063,1718004640615,-500.0,0.00029041,4]
[328930065,1718004640626,-500.0,0.00029041,4]
[328930067,1718004640636,-500.0,0.00029041,4]
[328930068,1718004640647,-500.0,0.00029041,4]
[328930069,1718004640657,-500.0,0.00029041,4]
[328930070,1718004640668,-594.07023172,0.00029041,4]
[328930071,1718004640678,-500.0,0.00029041,4]
[328930072,1718004640689,-500.0,0.00029041,4]
[328930073,1718004640699,-508.34616709,0.00029041,4]
[328930074,1718004640710,-500.0,0.00029041,4]
[328930075,1718004640720,-279.30984758,0.00029041,4]
[328930076,1718004640730,-500.0,0.00029041,4]
[328930077,1718004640740,-500.0,0.00029041,4]
[328930078,1718004640750,-507.87025564,0.00029041,4]
[328930079,1718004640760,-500.0,0.00029041,4]
[328930080,1718004640770,-500.0,0.00029041,4]
[328930081,1718004640780,-524.98968309,0.00029041,4]
[328930082,1718004640791,-539.78467258,0.00029041,4]
[328930083,1718004640801,-500.0,0.00029041,4]
[328930084,1718004640811,-153.30377865,0.00029041,4]
[328930085,1718004640821,-500.0,0.00029041,4]
[328930086,1718004640833,-500.0,0.00029041,4]
[328930087,1718004641011,-500.0,0.00029041,4]
[328930088,1718004641021,-322.87616697,0.00029041,4]
[328930089,1718004641031,-582.89360689,0.00029041,4]
[328930090,1718004641042,-500.0,0.00029041,4]
[328930091,1718004641052,-500.0,0.00029041,4]
[328930092,1718004641061,-520.88493853,0.00029041,4]
[328930093,1718004641073,-500.0,0.00029041,4]
[328930094,1718004641084,-500.0,0.00029041,4]
[328930095,1718004641095,-500.0,0.00029041,4]
[328930096,1718004641105,-628.59587844,0.00029041,4]
[328930097,1718004641115,-500.0,0.00029041,4]
[328930098,1718004641125,-500.0,0.00029041,4]
[328930099,1718004641135,-500.0,0.00029041,4]
[328930100,1718004641145,-500.0,0.00029041,4]
[328930101,1718004641155,-500.0,0.00029041,4]
[328930102,1718004641165,-500.0,0.00029041,4]
[328930103,1718004641175,-613.08251171,0.00029041,4]
[328930104,1718004641185,-644.74541916,0.00029041,4]
[328930105,1718004641195,-500.0,0.00029041,4]
[328930106,1718004641205,-500.0,0.00029041,4]
[328930107,1718004641216,-500.0,0.00029041,4]
[328930108,1718004641226,-500.0,0.00029041,4]
[328930109,1718004641236,-500.0,0.00029041,4]
[328930110,1718004641246,-500.0,0.00029041,4]
[328930111,1718004641256,-500.0,0.00029041,4]
[328930112,1718004641267,-500.0,0.00029041,4]
[328930113,1718004641277,-500.0,0.00029041,4]
[328930114,1718004641288,-500.0,0.00029041,4]
[328930115,1718004641298,-478.2823121,0.00029041,4]
[328930116,1718004641308,-500.0,0.00029041,4]
[328930117,1718004641317,-524.37826614,0.00029041,4]
[328930118,1718004641329,-503.38192206,0.00029041,4]
[328930119,1718004641339,-605.58717043,0.00029041,4]
[328930120,1718004641348,-251.89772737,0.00029041,4]
[328930121,1718004641359,-500.0,0.00029041,4]
[328930122,1718004641368,-500.0,0.00029041,4]
[328930123,1718004641378,-513.31966171,0.00029041,4]
[328930124,1718004641388,-503.81583473,0.00029041,4]
[328930125,1718004641400,-500.0,0.00029041,4]
[328930126,1718004641410,-500.0,0.00029041,4]
[328930127,1718004641420,-500.0,0.00029041,4]
[328930128,1718004641430,-500.0,0.00029041,4]
[328930129,1718004641440,-500.0,0.00029041,4]
[328930130,1718004641450,-500.0,0.00029041,4]
[328930131,1718004641459,-500.0,0.00029041,4]
[328930132,1718004641469,-211.48440879,0.00029041,4]
[328930133,1718004641481,-397.00234432,0.00029041,4]
[328930134,1718004641491,-500.0,0.00029041,4]
[328930135,1718004641502,-500.0,0.00029041,4]
[328930136,1718004641511,-500.0,0.00029041,4]
[328930137,1718004641521,-500.0,0.00029041,4]
[328930138,1718004641531,-500.0,0.00029041,4]
[328930139,1718004641541,-500.0,0.00029041,4]
[328930140,1718004641550,-500.0,0.00029041,4]
[328930141,1718004641560,-500.0,0.00029041,4]
[328930142,1718004641570,-500.0,0.00029041,4]
[328930143,1718004641582,-500.0,0.00029041,4]
[328930144,1718004641592,-500.0,0.00029041,4]
[328930145,1718004641602,-269.81190934,0.00029041,4]
[328930146,1718004641612,-500.0,0.00029041,4]
[328930147,1718004641622,-364.7415208,0.00029041,4]
[328930148,1718004641632,-500.0,0.00029041,4]
[328930149,1718004641642,-505.0926787,0.00029041,4]
[328930150,1718004641652,-500.0,0.00029041,4]
[328930151,1718004641662,-500.0,0.00029041,4]
[328930152,1718004641672,-500.0,0.00029041,4]
[328930153,1718004641682,-500.0,0.00029041,4]
[328930154,1718004641692,-564.22230505,0.00029041,4]
[328930155,1718004641701,-500.0,0.00029041,4]
[328930156,1718004641711,-500.0,0.00029041,4]
[328930157,1718004641720,-513.34347387,0.00029041,4]
[328930158,1718004641730,-541.59305427,0.00029041,4]
[328930159,1718004641739,-500.0,0.00029041,4]
[328930160,1718004641748,-500.0,0.00029041,4]
[328930161,1718004641758,-500.0,0.00029041,4]
[328930162,1718004641767,-500.0,0.00029041,4]
[328930163,1718004641777,-500.0,0.00029041,4]
[328930164,1718004641788,-261.53118756,0.00029041,4]
[328930165,1718004641798,-500.0,0.00029041,4]
[328930166,1718004641808,-631.26131292,0.00029041,4]
[328930167,1718004641818,-500.0,0.00029041,10]
[328930168,1718004641829,-501.04948813,0.00029041,10]
[328930169,1718004641839,-500.0,0.00029041,4]
[328930170,1718004641850,-263.48,0.00029041,4]
[328930171,1718004641860,-510.83738448,0.00029041,4]
[328930172,1718004641870,-294.57,0.00029041,4]
[328930173,1718004641880,-500.0,0.00029041,4]
[328930174,1718004641890,-500.0,0.00029041,4]
[328930175,1718004641900,-522.50788172,0.00029041,4]
[328930176,1718004641909,-500.0,0.00029041,4]
[328930177,1718004641919,-500.0,0.00029041,4]
[328930178,1718004641929,-500.0,0.00029041,4]
[328930179,1718004641939,-500.0,0.00029041,4]
[328930180,1718004641948,-500.0,0.00029041,4]
[328930181,1718004641957,-500.0,0.00029041,4]
[328930182,1718004641967,-500.0,0.00029041,4]
[328930183,1718004641977,-500.0,0.00029041,4]
[328930184,1718004641987,-500.0,0.00029041,4]
[328930185,1718004641996,-500.0,0.00029041,4]
[328930186,1718004642006,-500.0,0.00029041,4]
[328930187,1718004642016,-500.0,0.00029041,4]
[328930188,1718004642027,-500.0,0.00029041,4]
[328930189,1718004642037,-184.28449538,0.00029041,4]
[328930190,1718004642047,-500.0,0.00029041,4]
[328930191,1718004642057,-500.0,0.00029041,4]
[328930192,1718004642067,-500.0,0.00029041,4]
[328930193,1718004642077,-500.0,0.00029041,4]
[328930194,1718004642087,-500.0,0.00029041,4]
[328930195,1718004642097,-500.0,0.00029041,4]
[328930196,1718004642107,-617.36812754,0.00029041,4]
[328930197,1718004642117,-500.0,0.00029041,4]
[328930198,1718004642126,-500.0,0.00029041,4]
[328930199,1718004642137,-500.0,0.00029041,4]
[328930200,1718004642147,-500.0,0.00029041,4]
[328930201,1718004642157,-500.0,0.00029041,4]
[328930202,1718004642167,-500.0,0.00029041,4]
[328930203,1718004642177,-500.0,0.00029041,4]
[328930204,1718004642187,-500.0,0.00029041,4]
[328930205,1718004642197,-500.0,0.00029041,4]
[328930206,1718004642207,-500.0,0.00029041,4]
[328930207,1718004642220,-333.43504827,0.00029041,4]
[328930208,1718004642230,-500.0,0.00029041,4]
[328930209,1718004642240,-500.0,0.00029041,4]
[328930210,1718004642251,-500.0,0.00029041,4]
[328930211,1718004642261,-530.92249254,0.00029041,4]
[328930212,1718004642271,-500.0,0.00029041,4]
[328930213,1718004642282,-500.0,0.00029041,4]
[328930214,1718004642292,-500.0,0.00029041,4]
[328930215,1718004642302,-500.0,0.00029041,4]
[328930216,1718004642314,-500.0,0.00029041,4]
[328930217,1718004642324,-500.0,0.00029041,4]
[328930218,1718004642335,-500.0,0.00029041,4]
[328930219,1718004642345,-500.0,0.00029041,4]
[328930220,1718004642355,-381.03921449,0.00029041,4]
[328930221,1718004642366,-269.41,0.00029041,4]
[328930222,1718004642376,-500.0,0.00029041,4]
[328930223,1718004642387,-506.09608467,0.00029041,4]
[328930224,1718004642398,-500.0,0.00029041,4]
[328930225,1718004642412,-490.63254278,0.00029041,4]
[328930226,1718004642422,-500.0,0.00029041,4]
[328930227,1718004642432,-500.0,0.00029041,4]
[328930228,1718004642442,-500.0,0.00029041,4]
[328930229,1718004642454,-500.0,0.00029041,4]
[328930230,1718004642465,-500.0,0.00029041,4]
[328930231,1718004642474,-500.0,0.00029041,4]
[328930232,1718004642487,-471.23401988,0.00029041,4]
[328930233,1718004642497,-500.0,0.00029041,4]
[328930234,1718004642507,-256.33315907,0.00029041,4]
[328930235,1718004642517,-500.0,0.00029041,4]
[328930236,1718004642528,-500.0,0.00029041,4]
[328930237,1718004642538,-500.0,0.00029041,4]
[328930238,1718004642548,-500.0,0.00029041,4]
[328930239,1718004642559,-291.78779149,0.00029041,4]
[328930240,1718004642569,-500.0,0.00029041,4]
[328930241,1718004642581,-500.0,0.00029041,4]
[328930242,1718004642592,-500.0,0.00029041,4]
[328930243,1718004642602,-500.0,0.00029041,4]
[328930244,1718004642612,-376.77604866,0.00029041,4]
[328930245,1718004642623,-500.0,0.00029041,4]
[328930246,1718004642633,-500.0,0.00029041,4]
[328930247,1718004642643,-500.0,0.00029041,4]
[328930248,1718004642653,-500.0,0.00029041,4]
[328930249,1718004642664,-496.38771701,0.00029041,4]
[328930250,1718004642674,-500.0,0.00029041,4]
[328930251,1718004642685,-500.0,0.00029041,4]
[328930252,1718004642695,-500.0,0.00029041,4]
[328930253,1718004642705,-538.14421623,0.00029041,4]
[328930254,1718004642716,-500.0,0.00029041,4]
[328930255,1718004642726,-500.0,0.00029041,4]
[328930256,1718004642736,-500.0,0.00029041,4]
[328930257,1718004642746,-500.0,0.00029041,4]
[328930258,1718004642756,-500.0,0.00029041,4]
[328930259,1718004642766,-500.0,0.00029041,4]
[328930261,1718004642776,-491.8841496,0.00029041,4]
[328930263,1718004642786,-500.0,0.00029041,4]
[328930265,1718004642797,-528.95704992,0.00029041,4]
[328930266,1718004642807,-513.48396269,0.00029041,4]
[328930267,1718004642817,-500.0,0.00029041,4]
[328930268,1718004642827,-500.0,0.00029041,4]
[328930269,1718004642838,-518.47525717,0.00029041,4]
[328930270,1718004642849,-500.0,0.00029041,4]
[328930271,1718004642859,-500.0,0.00029041,4]
[328930272,1718004642869,-500.0,0.00029041,4]
[328930273,1718004642879,-500.0,0.00029041,4]
[328930274,1718004642889,-500.0,0.00029041,4]
[328930275,1718004642900,-500.0,0.00029041,4]
[328930276,1718004642910,-500.0,0.00029041,4]
[328930277,1718004642921,-500.0,0.00029041,4]
[328930278,1718004642931,-500.0,0.00029041,4]
[328930279,1718004642942,-311.18440412,0.00029041,4]
[328930280,1718004642952,-504.715221,0.00029041,4]
[328930281,1718004642962,-500.0,0.00029041,4]
[328930282,1718004642972,-500.0,0.00029041,4]
[328930283,1718004642982,-507.09746657,0.00029041,4]
[328930284,1718004642993,-500.0,0.00029041,4]
[328930285,1718004643003,-511.81466391,0.00029041,4]
[328930286,1718004643013,-500.0,0.00029041,4]
[328930287,1718004643023,-500.0,0.00029041,4]
[328930288,1718004643034,-500.0,0.00029041,4]
[328930289,1718004643044,-500.0,0.00029041,4]
[328930290,1718004643055,-500.0,0.00029041,4]
[328930291,1718004643065,-500.0,0.00029041,4]
[328930292,1718004643077,-573.5053777,0.00029041,4]
[328930293,1718004643087,-500.0,0.00029041,4]
[328930294,1718004643098,-500.0,0.00029041,4]
[328930295,1718004643109,-500.0,0.00029041,4]
[328930296,1718004643119,-500.0,0.00029041,4]
[328930297,1718004643129,-500.0,0.00029041,4]
[328930298,1718004643140,-500.0,0.00029041,4]
[328930299,1718004643150,-500.0,0.00029041,4]
[328930300,1718004643160,-500.0,0.00029041,4]
[328930301,1718004643170,-500.0,0.00029041,4]
[328930302,1718004643181,-500.0,0.00029041,4]
[328930303,1718004643191,-500.0,0.00029041,4]
[328930304,1718004643201,-500.0,0.00029041,4]
[328930305,1718004643212,-500.0,0.00029041,4]
[328930306,1718004643221,-500.0,0.00029041,4]
[328930307,1718004643232,-500.0,0.00029041,4]
[328930308,1718004643241,-500.0,0.00029041,4]
[328930309,1718004643251,-500.0,0.00029041,4]
[328930310,1718004643261,-579.52445228,0.00029041,4]
[328930311,1718004643271,-500.0,0.00029041,4]
[328930312,1718004643281,-285.05342184,0.00029041,4]
[328930313,1718004643291,-500.0,0.00029041,4]
[328930314,1718004643301,-500.0,0.00029041,4]
[328930315,1718004643311,-500.0,0.00029041,4]
[328930316,1718004643321,-500.0,0.00029041,4]
[328930317,1718004643333,-500.0,0.00029041,4]
[328930318,1718004643344,-500.0,0.00029041,4]
[328930319,1718004643355,-500.0,0.00029041,4]
[328930320,1718004643366,-500.0,0.00029041,4]
[328930321,1718004643377,-500.0,0.00029041,4]
[328930322,1718004643387,-500.0,0.00029041,4]
[328930323,1718004643400,-500.0,0.00029041,4]
[328930324,1718004643412,-500.0,0.00029041,4]
[328930325,1718004643423,-500.0,0.00029041,4]
[328930326,1718004643433,-500.0,0.00029041,4]
[328930327,1718004643444,-500.0,0.00029041,4]
[328930328,1718004643455,-500.0,0.00029041,4]
[328930329,1718004643465,-500.0,0.00029041,4]
[328930330,1718004643475,-500.0,0.00029041,4]
[328930331,1718004643488,-500.0,0.00029041,4]
[328930332,1718004643501,-500.0,0.00029041,4]
[328930333,1718004643511,-306.16236467,0.00029041,4]
[328930334,1718004643522,-500.0,0.00029041,4]
[328930335,1718004643532,-500.0,0.00029041,4]
[328930336,1718004643543,-432.78377966,0.00029041,4]
[328930337,1718004643554,-500.0,0.00029041,4]
[328930338,1718004643564,-500.0,0.00029041,4]
[328930339,1718004643575,-507.44866864,0.00029041,4]
[328930340,1718004643587,-500.0,0.00029041,4]
[328930341,1718004643598,-500.0,0.00029041,4]
[328930342,1718004643608,-304.77820248,0.00029041,4]
[328930343,1718004643618,-500.0,0.00029041,4]
[328930344,1718004643629,-500.0,0.00029041,4]
[328930345,1718004643640,-509.091229,0.00029041,4]
[328930346,1718004643650,-500.0,0.00029041,4]
[328930347,1718004643660,-500.0,0.00029041,4]
[328930348,1718004643670,-513.696815,0.00029041,4]
[328930349,1718004643679,-500.0,0.00029041,4]
[328930350,1718004643689,-500.0,0.00029041,4]
[328930351,1718004643699,-500.0,0.00029041,4]
[328930352,1718004643709,-500.0,0.00029041,4]
[328930353,1718004643719,-500.0,0.00029041,4]
[328930354,1718004643728,-514.39734397,0.00029041,4]
[328930355,1718004643738,-500.0,0.00029041,4]
[328930356,1718004643748,-500.0,0.00029041,4]
[328930357,1718004643758,-500.0,0.00029041,4]
[328930358,1718004643768,-517.85764546,0.00029041,4]
[328930359,1718004643779,-500.0,0.00029041,4]